Cogmind - Beta 17.1 @@@ ROGUE MODE // 2026.09.16 @ 15:16:09 Player: ae Result: Escaped! Performance ------------- Evolutions (9) 4500 Regions Visited (13) 2600 Robots Destroyed (47) 235 Value Destroyed (554) 554 Prototype IDs (28) 560 Alien Tech Used (0) 0 Bonus (11952) 11952 TOTAL SCORE: 20401 Bonus ------- Entered DSFs 500 Aligned with FarCom 300 Win 3000 Win Speed 8152 Cogmind --------- Core Integrity 1576/1600 Matter 290/300 Energy 1570/1650 System Corruption 1% Temperature Hot (227) Movement Flying (22) Location To Epsilon Eridani Parts ------- > --- POWER (2) -------- Micro Fission Core > --- PROPULSION (8) --- Combat Linear Gravjet Cesium-ion Thruster Cesium-ion Thruster Cooled Cesium-ion Thruster Cooled Cesium-ion Thruster Q-thruster Impulse Thruster Array > --- UTILITY (13) ----- Medium Storage Unit Superbattery Structural Scanner Enhanced Optical Array Advanced Reaction Control System Improved Utility Shielding Layered Light Armor Plating Layered Medium Armor Plating Hacking Suite Hacking Suite Hacking Suite Improved Hacking Suite System Shield > --- WEAPON (2) ------- (None) > --- INVENTORY (10) --- Micro Antimatter Reactor Combat Antigrav System Combat Antigrav System Improved Trap Scanner Authchip [Propulsion] Drone Bay (2/2) Enhanced Nova Cannon Mass Driver Precision Grenade Launcher Peak State ------------ > --- POWER ------------ Micro Fission Core Mini Fusion Reactor > --- PROPULSION ------- Combat Linear Gravjet Cesium-ion Thruster Cesium-ion Thruster Cooled Cesium-ion Thruster Cooled Cesium-ion Thruster Q-thruster Impulse Thruster Array > --- UTILITY ---------- Medium Storage Unit Structural Scanner Enhanced Optical Array Experimental Signal Interpreter Advanced Reaction Control System Improved Utility Shielding Layered Light Armor Plating Layered Medium Armor Plating Hacking Suite Hacking Suite Hacking Suite Improved Hacking Suite System Shield > --- WEAPON ----------- Greatsword > --- INVENTORY -------- Micro Antimatter Reactor Combat Antigrav System Combat Antigrav System Superbattery Improved Trap Scanner Authchip [Propulsion] Drone Bay Enhanced Nova Cannon Mass Driver Precision Grenade Launcher [Rating: 130] Favorites ----------- Power Micro Fission Core Engine Light Ion Engine Power Core Micro Fission Core Reactor Mini Fusion Reactor Propulsion Cesium-ion Thruster Treads Light Treads Hover Unit Combat Linear Gravjet Flight Unit Cesium-ion Thruster Utility Hacking Suite Device Seismic Detector Storage Medium Storage Unit Processor Advanced Terrain Scan Processor Hackware Hacking Suite Protection Improved Utility Shielding Weapon Greatsword Energy Cannon Enhanced Nova Cannon Ballistic Gun Light Assault Rifle Ballistic Cannon Mass Driver Launcher Precision Grenade Launcher Slashing Weapon Greatsword Build | -11 -10 -10 -10 -9 -8 -7 -6 -5 -4 -4 -3 -2 -1 ------- Run | Yrd Mat Min Exi Min Mat Fac Fac Fac Fac DSF Res Res Acc Slots Evolved 18 | . . . . . 4 2 2 2 2 . 2 2 2 Power 1 | . . . . . . . 1 . . . . . . Propulsion 6 | . . . . . 2 . 1 1 . . 1 1 . Utility 11 | . . . . . 2 2 . 1 2 . 1 1 2 Weapon . | . . . . . . . . . . . . . . Parts Attached 56 | 5 . 1 . . 10 12 6 3 . . 10 3 6 Power 6 | . . . . . . 4 . 1 . . 1 . . Engine 3 | . . . . . . 3 . . . . . . . Core 2 | . . . . . . 1 . 1 . . . . . Reactor 1 | . . . . . . . . . . . 1 . . Propulsion 15 | 2 . . . . 7 . 1 1 . . 2 2 . Treads 2 | 2 . . . . . . . . . . . . . Leg . | . . . . . . . . . . . . . . Wheel . | . . . . . . . . . . . . . . Hover 1 | . . . . . . . . . . . . 1 . Flight 12 | . . . . . 7 . 1 1 . . 2 1 . Utility 28 | 1 . 1 . . 1 7 5 1 . . 6 1 5 Device 6 | 1 . 1 . . . . 2 1 . . . . 1 Storage 2 | . . . . . 1 . . . . . . . 1 Processor 8 | . . . . . . 4 2 . . . 1 . 1 Hackware 8 | . . . . . . . 1 . . . 5 1 1 Protection 4 | . . . . . . 3 . . . . . . 1 Artifact . | . . . . . . . . . . . . . . Weapon 7 | 2 . . . . 2 1 . . . . 1 . 1 Energy Gun . | . . . . . . . . . . . . . . Energy Cannon 1 | . . . . . . . . . . . . . 1 Ballistic Gun 2 | 2 . . . . . . . . . . . . . Ballistic Cannon 1 | . . . . . . . . . . . 1 . . Launcher 2 | . . . . . 1 1 . . . . . . . Special Weapon . | . . . . . . . . . . . . . . Impact Weapon . | . . . . . . . . . . . . . . Slashing Weapon 1 | . . . . . 1 . . . . . . . . Piercing Weapon . | . . . . . . . . . . . . . . Special Melee Weapon . | . . . . . . . . . . . . . . Unidentified Prototypes 4 | . . . . . . 2 . . . . 1 . 1 Parts Lost 10 | . . . . . 4 . . 1 . . . 2 3 Power 1 | . . . . . . . . . . . . . 1 Propulsion 6 | . . . . . 3 . . 1 . . . 2 . Utility 2 | . . . . . 1 . . . . . . . 1 Weapon 1 | . . . . . . . . . . . . . 1 Highest Loss Streak 4 | . . . . . 4 . . 1 . . . 2 3 To Critical Strikes . | . . . . . . . . . . . . . . Average Backups 6 | 3 5 4 5 5 4 4 5 9 10 10 9 9 10 Power . | . 1 . . . . . . 2 2 2 2 1 1 Propulsion . | . 1 1 2 2 1 . . . . . . . 1 Utility 2 | . 1 1 1 1 1 1 2 4 6 6 4 6 4 Weapon 2 | 1 2 1 1 1 2 2 2 2 2 2 2 2 2 Tool/Special . | . . . . . . . . . . . . . . Unused Backups 19 | 1 . 2 1 1 . 2 . 2 . . 4 . 6 Power 5 | . . 1 . . . . . 1 . . 2 . 1 Propulsion 4 | . . 1 . . . . . . . . . . 3 Utility 5 | 1 . . . 1 . . . . . . 1 . 2 Weapon 4 | . . . 1 . . 1 . 1 . . 1 . . Tool/Special 1 | . . . . . . 1 . . . . . . . Average Slot Usage (%) 76 | . 57 68 71 71 57 71 85 86 73 73 79 84 87 Core 2 | . . . . . . 1 6 8 5 5 1 4 4 Reactor 1 | . . . . . . . . . . . 2 4 3 Treads 7 | . 28 28 28 28 7 . . . . . . . . Flight 19 | . . . . . 20 30 33 31 26 26 23 26 24 Device 10 | . 14 21 28 28 16 7 4 4 5 5 4 4 7 Storage 2 | . . . . . 4 3 2 5 5 5 4 4 4 Processor 5 | . . . . . . 9 8 11 10 10 7 4 4 Hackware 8 | . . . . . . . 2 5 5 5 20 25 21 Protection 6 | . . . . . . 8 18 10 10 10 8 4 10 Ballistic Gun 4 | . 14 18 14 14 8 . . . . . . . . Slashing Weapon 3 | . . . . . . 7 6 5 5 5 3 3 3 Peak Build Rating 130 | 5 4 8 8 8 23 43 48 66 57 57 87 108 130 Average Rating 46 | 3 4 5 7 8 13 30 45 59 57 57 71 101 121 On Entrance 36 | . 4 4 7 8 8 23 40 48 57 57 57 87 108 Avg Prop Armor Cover (%) 19 | 30 32 31 31 31 32 3 . . . 2 2 3 1 Naked Turns . | . . . . . . . . . . . . . . Heaviest Build 46 | 4 2 4 3 3 16 18 28 34 27 27 31 31 46 Greatest Support 54 | 3 3 40 3 3 20 20 30 39 31 31 45 54 54 Greatest Overweight (x) 2 | 1 . 1 . . 1 . . 1 . 1 1 2 . Average Overweight (x) . | . . . . . . . . . . . . . . Largest Inventory Capacity 10 | 5 5 5 5 5 10 10 10 10 10 10 10 10 10 Average Capacity 7 | 5 5 5 5 5 7 7 7 10 10 10 10 10 10 Most Carried 10 | 5 5 5 5 5 6 5 8 10 10 10 10 10 10 Average Carried 6 | 3 5 4 5 5 4 4 6 9 10 10 9 9 9 Final Capacity 10 | 5 5 5 5 5 10 5 10 10 10 10 10 10 10 Final Carried 10 | 5 5 5 5 5 4 5 8 10 10 10 10 10 9 Class Distribution -------------------- 31% | Mutant 24% | Sprinter 20% | Hacker-Scout 10% | Wizard-Scout 5% | Scientist-Scout 3% | Scout Dominant Class ---------------- Mutant | -10/Materials Mutant | -10/Mines Mutant | -10/Exiles Mutant | -9/Mines Sprinter | -8/Materials Sprinter | -7/Factory Sprinter | -6/Factory Scientist-Scout | -5/Factory Scientist-Scout | -4/Factory Scientist-Assassin | -4/DSF Hacker-Scout | -3/Research Wizard-Scout | -2/Research Hacker-Scout | -1/Access Resources | -11 -10 -10 -10 -9 -8 -7 -6 -5 -4 -4 -3 -2 -1 ----------- Run | Yrd Mat Min Exi Min Mat Fac Fac Fac Fac DSF Res Res Acc Matter Collected 1196 | 346 . 110 . 7 34 150 91 91 . . 122 100 145 Remotely . | . . . . . . . . . . . . . . Salvage Created 1474 | 133 . 131 . . 7 434 45 128 . . 450 121 25 Parts 113 | 12 . 13 . . 3 21 9 18 . . 28 7 2 Haulers Intercepted 3 | . . . . . . 1 . . . . 1 1 . Recyclers Shooed 4 | . . 1 . . . 3 . . . . . . . Parts Field Recycled . | . . . . . . . . . . . . . . Retrieved Matter . | . . . . . . . . . . . . . . Parts Self-Destructed . | . . . . . . . . . . . . . . Prevented . | . . . . . . . . . . . . . . Parts Restored . | . . . . . . . . . . . . . . Kills | -11 -10 -10 -10 -9 -8 -7 -6 -5 -4 -4 -3 -2 -1 ------- Run | Yrd Mat Min Exi Min Mat Fac Fac Fac Fac DSF Res Res Acc Combat Hostiles Destroyed 9 | . . 6 . . 3 . . . . . . . . Guns 6 | . . 6 . . . . . . . . . . . AOE 3 | . . . . . 3 . . . . . . . . Classes Destroyed 10 | 2 . 3 . . . 4 1 . . . . . . Worker 11 | . . . . . . 5 2 1 . . 3 . . Builder 8 | . . . . . . 1 . 3 . . 2 1 1 Tunneler 4 | 3 . . . . . 1 . . . . . . . Hauler 3 | . . . . . . 1 . . . . 1 1 . Recycler 5 | 1 . . . . . 3 . . . . 1 . . Operator 4 | . . . . . . . 1 1 . . 2 . . Watcher 4 | . . . . . . 1 . 1 . . 2 . . Swarmer 6 | . . 3 . . 3 . . . . . . . . Grunt 2 | . . 2 . . . . . . . . . . . Assembled 1 | . . 1 . . . . . . . . . . . Best Kill Streak 6 | 4 . 3 . . 3 6 2 3 . . 4 2 1 Combat Bots Only 3 | . . 3 . . 3 . . . . . . . . Max Kills in Single Turn 3 | 1 . 1 . . 3 1 1 1 . . 1 1 1 Gunslinging . | . . . . . . . . . . . . . . Exploded 3 | . . . . . 3 . . . . . . . . Melee . | . . . . . . . . . . . . . . Uniques/NPCs Destroyed . | . . . . . . . . . . . . . . Combat | -11 -10 -10 -10 -9 -8 -7 -6 -5 -4 -4 -3 -2 -1 -------- Run | Yrd Mat Min Exi Min Mat Fac Fac Fac Fac DSF Res Res Acc Hostile Shots Fired 147 | . 7 25 . . 68 . . 7 . . . 6 34 Missed 69 | . 3 6 . . 39 . . 2 . . . 4 15 Hits 78 | . 4 19 . . 29 . . 5 . . . 2 19 Projectile 78 | . 4 19 . . 29 . . 5 . . . 2 19 Critical Strikes 2 | . . 1 . . . . . . . . . . 1 Damage Taken 1482 | . 55 202 . . 353 . . 93 . . . 348 431 Core 323 | . . 51 . . 126 . . . . . . 122 24 Absorbed by Shields 6 | . . . . . . . . 6 . . . . . Redirected to Shielding 95 | . . . . . . . . . . . . 31 64 Regen/Repaired (Parts) 7 | . . . . . . . . . . . 7 . . Core Remaining (%) 94 | 100 . . . 79 77 100 100 100 . 100 100 91 98 Volleys Fired 55 | 24 . 20 . . 1 . . . . . 7 1 2 Largest 2 | 2 . 2 . . 1 . . . . . 1 1 1 Hottest 120 | 40 . 40 . . 33 . . . . . 47 47 120 Shots Fired 98 | 48 . 39 . . 1 . . . . . 7 1 2 Gun 87 | 48 . 39 . . . . . . . . . . . Cannon 9 | . . . . . . . . . . . 6 1 2 Launcher 2 | . . . . . 1 . . . . . 1 . . Special . | . . . . . . . . . . . . . . Kinetic 94 | 48 . 39 . . . . . . . . 6 1 . Thermal 2 | . . . . . . . . . . . . . 2 Explosive 2 | . . . . . 1 . . . . . 1 . . Electromagnetic . | . . . . . . . . . . . . . . Robot Hit Streak 12 | 4 . 12 . . . . . . . . . . . Robot Miss Streak 3 | 2 . 3 . . . . . . . . . . . Penetration Max . | . . . . . . . . . . . . . . Secondary Targets . | . . . . . . . . . . . . . . Shots Hit Robots 105 | 30 . 25 . . . 17 3 7 . . 14 3 6 Core Hits 45 | 7 . 14 . . 2 8 2 4 . . 6 1 1 Critical Kills . | . . . . . . . . . . . . . . Critical Parts Destroyed . | . . . . . . . . . . . . . . Critical Strikes 2 | . . . . . . 1 . . . . . . 1 Sever 2 | . . . . . . 1 . . . . . . 1 Melee Attacks 112 | . . . . . 1 23 5 20 . . 28 15 20 Impact . | . . . . . . . . . . . . . . Slashing 112 | . . . . . 1 23 5 20 . . 28 15 20 Piercing . | . . . . . . . . . . . . . . Sneak Attacks 33 | . . . . . . 13 2 4 . . 8 2 4 Combat Hostiles . | . . . . . . . . . . . . . . Follow-up Attacks . | . . . . . . . . . . . . . . Damage Inflicted 5598 | 226 . 240 . . 167 1732 318 665 . . 1388 279 583 Guns 466 | 226 . 240 . . . . . . . . . . . Cannons . | . . . . . . . . . . . . . . Explosions 215 | . . . . . 167 . . . . . 48 . . Melee 4917 | . . . . . . 1732 318 665 . . 1340 279 583 Ramming . | . . . . . . . . . . . . . . Kinetic 466 | 226 . 240 . . . . . . . . . . . Thermal . | . . . . . . . . . . . . . . Explosive 215 | . . . . . 167 . . . . . 48 . . Electromagnetic . | . . . . . . . . . . . . . . Impact . | . . . . . . . . . . . . . . Slashing 4917 | . . . . . . 1732 318 665 . . 1340 279 583 Piercing . | . . . . . . . . . . . . . . Highest Corruption 3 | . . . . . . . . 3 . . . 3 1 Average Corruption 2 | . . . . . . . . 3 . . . 3 1 Corruption Purged . | . . . . . . . . . . . . . . Corruption Blocked . | . . . . . . . . . . . . . . Effects 5 | . . . . . . . . 2 . . . 3 . Message Errors 3 | . . . . . . . . 1 . . . 2 . Heat Flow Errors 1 | . . . . . . . . 1 . . . . . Energy Discharges 1 | . . . . . . . . . . . . 1 . Overload Shots . | . . . . . . . . . . . . . . Overflow Damage 1393 | . . . . . 37 334 96 186 . . 534 101 105 Projectiles . | . . . . . . . . . . . . . . Explosions 37 | . . . . . 37 . . . . . . . . Melee 1356 | . . . . . . 334 96 186 . . 534 101 105 Knockbacks . | . . . . . . . . . . . . . . Impact . | . . . . . . . . . . . . . . Kinetic . | . . . . . . . . . . . . . . Secondary . | . . . . . . . . . . . . . . Self-Inflicted Damage . | . . . . . . . . . . . . . . Shots . | . . . . . . . . . . . . . . Rammed . | . . . . . . . . . . . . . . Targets Rammed . | . . . . . . . . . . . . . . Kicked . | . . . . . . . . . . . . . . Crushed . | . . . . . . . . . . . . . . Highest Temperature 305 | . . 22 . . . . 53 203 . . 113 128 305 Average Temperature 58 | . . 7 . . . . 15 59 . . 34 39 107 Received Heat Transfer 372 | . 33 90 . . 135 . . 42 . . . 18 54 Effects 3 | . . . . . . . . . . . . . 3 Interference 3 | . . . . . . . . . . . . . 3 Siege Activations . | . . . . . . . . . . . . . . Martial Activations . | . . . . . . . . . . . . . . Shielding Activations . | . . . . . . . . . . . . . . Robots Disrupted . | . . . . . . . . . . . . . . Combat Hostiles . | . . . . . . . . . . . . . . Robots Corrupted . | . . . . . . . . . . . . . . Combat Hostiles . | . . . . . . . . . . . . . . Parts Fried . | . . . . . . . . . . . . . . Impact Corruptions . | . . . . . . . . . . . . . . Robots Melted . | . . . . . . . . . . . . . . Combat Hostiles . | . . . . . . . . . . . . . . Parts Melted . | . . . . . . . . . . . . . . Heat Transferred . | . . . . . . . . . . . . . . Parts Sabotaged . | . . . . . . . . . . . . . . Parts Stolen . | . . . . . . . . . . . . . . Parts Stripped . | . . . . . . . . . . . . . . Power Chain Reactions . | . . . . . . . . . . . . . . Alert | -11 -10 -10 -10 -9 -8 -7 -6 -5 -4 -4 -3 -2 -1 ------- Run | Yrd Mat Min Exi Min Mat Fac Fac Fac Fac DSF Res Res Acc Maximum Alert Level . | . . . . . . . . . . . . . . Low Security (%) 100 | 100 100 100 . 100 100 100 100 100 100 100 100 100 100 Level 1 . | . . . . . . . . . . . . . . Level 2 . | . . . . . . . . . . . . . . Level 3 . | . . . . . . . . . . . . . . Level 4 . | . . . . . . . . . . . . . . Level 5 . | . . . . . . . . . . . . . . High Security . | . . . . . . . . . . . . . . Max Security . | . . . . . . . . . . . . . . Peak Influence 148 | 10 . 80 . . 148 83 10 96 39 27 39 35 38 Initial 67 | . . . . . . 67 4 . 39 27 15 10 14 Average 24 | 1 . 42 . . 52 55 2 40 39 27 13 8 15 Influence Increases 1102 | 20 . 135 . . 238 113 32 193 . . 159 90 122 Destroy 0b10 Robot/C 160 | . . 100 . . 60 . . . . . . . . Destroy 0b10 Robot/NC 195 | 20 . . . . . 60 15 30 . . 55 10 5 Destroy Leader 44 | . . 20 . . 10 4 . 2 . . 6 2 . Successful Hack 104 | . . . . . 22 30 15 4 . . 21 . 12 Disable Machine 75 | . . . . . . 15 . 30 . . 15 . 15 Destroy Structure 149 | . . . . . 11 4 2 22 . . 32 33 45 Partial Spotted 135 | . . 15 . . 15 . . 30 . . 30 30 15 Lose Combat Pursuer 240 | . . . . . 120 . . 75 . . . 15 30 Influence Decreases 1075 | 20 . 130 5 . 90 251 42 113 41 12 167 84 120 Entered New Map 177 | . . . 5 . . 81 6 . 41 12 12 9 11 Time Decay 772 | 20 . 90 . . 50 170 36 106 . . 155 66 79 Lost Part 86 | . . . . . 40 . . 7 . . . 9 30 Lost Ally 40 | . . 40 . . . . . . . . . . . Squads Dispatched 20 | . . . . . 2 3 . 4 . . 6 2 3 Investigation 4 | . . . . . . . . . . . 3 . 1 Extermination 7 | . . . . . . 2 . 1 . . 2 1 1 Reinforcement 6 | . . . . . 2 . . 2 . . . 1 1 Assault . | . . . . . . . . . . . . . . Garrison 3 | . . . . . . 1 . 1 . . 1 . . Intercept . | . . . . . . . . . . . . . . Searches Triggered . | . . . . . . . . . . . . . . Construction Impeded . | . . . . . . . . . . . . . . Haulers Reinforced . | . . . . . . . . . . . . . . Active Scanning Responses . | . . . . . . . . . . . . . . Cargo Convoy Interrupts . | . . . . . . . . . . . . . . Stealth | -11 -10 -10 -10 -9 -8 -7 -6 -5 -4 -4 -3 -2 -1 --------- Run | Yrd Mat Min Exi Min Mat Fac Fac Fac Fac DSF Res Res Acc Distress Signals 8 | . . . . . 5 . . . . . . 2 1 Communications Jammed . | . . . . . . . . . . . . . . Distress Signals . | . . . . . . . . . . . . . . Times Spotted 74 | . 5 6 . . 29 1 1 7 . . 6 7 12 Peak Tracking Total 18 | . 5 3 . . 18 1 . 4 . . 3 4 10 Tactical Retreats 9 | . . . . . 4 . . 3 . . . 1 1 Traps | -11 -10 -10 -10 -9 -8 -7 -6 -5 -4 -4 -3 -2 -1 ------- Run | Yrd Mat Min Exi Min Mat Fac Fac Fac Fac DSF Res Res Acc Traps Triggered 4 | . . . . . . . . 3 . . . 1 . Indirectly . | . . . . . . . . . . . . . . Trap Hack Attempts . | . . . . . . . . . . . . . . Triggered . | . . . . . . . . . . . . . . Disarmed . | . . . . . . . . . . . . . . Reprogrammed . | . . . . . . . . . . . . . . Reused . | . . . . . . . . . . . . . . Traps Extracted . | . . . . . . . . . . . . . . Installed . | . . . . . . . . . . . . . . Triggered . | . . . . . . . . . . . . . . Machines | -11 -10 -10 -10 -9 -8 -7 -6 -5 -4 -4 -3 -2 -1 ---------- Run | Yrd Mat Min Exi Min Mat Fac Fac Fac Fac DSF Res Res Acc Machines Disabled 5 | . . . . . . 1 . 2 . . 1 . 1 Max in Single Turn 1 | . . . . . . 1 . 1 . . 1 . 1 Garrison Access 1 | . . . . . . . . . . . . 1 . Machines Repaired . | . . . . . . . . . . . . . . Machines Dismantled . | . . . . . . . . . . . . . . Machines Sabotaged . | . . . . . . . . . . . . . . Overloaded Fab Kills . | . . . . . . . . . . . . . . Hacking | -11 -10 -10 -10 -9 -8 -7 -6 -5 -4 -4 -3 -2 -1 --------- Run | Yrd Mat Min Exi Min Mat Fac Fac Fac Fac DSF Res Res Acc Machines Accessed 32 | . . . 2 . 2 2 6 5 1 . 8 3 3 Terminals 22 | . . . . . 2 2 4 4 1 . 4 2 3 Fabricators 3 | . . . . . . . . . . . 3 . . Repair Stations 1 | . . . . . . . . . . . 1 . . Recycling Units . | . . . . . . . . . . . . . . Scanalyzers 2 | . . . . . . . 1 1 . . . . . Garrison Access 2 | . . . . . . . 1 . . . . 1 . Total Hacks 81 | . . . 2 . 5 5 17 14 1 . 21 7 9 Successful 51 | . . . 2 . 2 3 8 9 1 . 15 6 5 Failed 29 | . . . . . 3 2 8 5 . . 6 1 4 Catastrophic 5 | . . . . . 1 1 . 2 . . . . 1 Database Lockouts 1 | . . . . . . . 1 . . . . . . Manual 41 | . . . 1 . 4 3 9 5 . . 10 4 5 Terminals 51 | . . . . . 5 5 9 8 1 . 8 6 9 Fabricators 11 | . . . . . . . . . . . 11 . . Repair Stations 2 | . . . . . . . . . . . 2 . . Recycling Units . | . . . . . . . . . . . . . . Scanalyzers 12 | . . . . . . . 6 6 . . . . . Garrison Access 3 | . . . . . . . 2 . . . . 1 . Terminal Hacks 19 | . . . 2 . . 1 2 2 1 . 4 3 4 Record 1 | . . . 1 . . . . . . . . . . Open Door 1 | . . . . . . . . . . . . . 1 Open DSF 2 | . . . . . . . . 1 1 . . . . Level Access Points 4 | . . . . . . . 1 . . . 1 1 1 Branch Access Points 2 | . . . . . . . 1 1 . . . . . Terminal Index 1 | . . . . . . . . . . . . . 1 Locate Traps 2 | . . . . . . 1 . . . . 1 . . Maintenance Status 3 | . . . . . . . . . . . 1 1 1 Registered Components 2 | . . . . . . . . . . . 1 1 . Proto ID Catalog 1 | . . . 1 . . . . . . . . . . Fabricator Hacks 5 | . . . . . . . . . . . 5 . . Load Schematic 4 | . . . . . . . . . . . 4 . . Build 1 | . . . . . . . . . . . 1 . . Repair Station Hacks 2 | . . . . . . . . . . . 2 . . Scan Component 1 | . . . . . . . . . . . 1 . . Repair 1 | . . . . . . . . . . . 1 . . Recycling Unit Hacks . | . . . . . . . . . . . . . . Scanalyzer 10 | . . . . . . . 4 6 . . . . . Insert Component 1 | . . . . . . . 1 . . . . . . Analyze 2 | . . . . . . . 2 . . . . . . Retrieve Study 7 | . . . . . . . 1 6 . . . . . Garrison Access Hacks 1 | . . . . . . . . . . . . 1 . Seal Access 1 | . . . . . . . . . . . . 1 . Unauthorized Hacks 14 | . . . . . 2 2 2 1 . . 4 2 1 Terminals 11 | . . . . . 2 2 2 1 . . 1 2 1 Assimilate 3 | . . . . . 2 . . . . . 1 . . Botnet 6 | . . . . . . 1 2 1 . . . 1 1 Operators 2 | . . . . . . 1 . . . . . 1 . Fabricators 3 | . . . . . . . . . . . 3 . . Prioritize 1 | . . . . . . . . . . . 1 . . Recompile 2 | . . . . . . . . . . . 2 . . Repair Stations . | . . . . . . . . . . . . . . Recycling Units . | . . . . . . . . . . . . . . Scanalyzers . | . . . . . . . . . . . . . . Garrison Access . | . . . . . . . . . . . . . . Data Cores Recovered 3 | . . . . . . . 1 . . . 2 . . Used 2 | . . . . . . . 1 . . . 1 . . Hacking Detections 23 | . . . . . 2 2 3 4 . . 7 2 3 Full Trace Events 2 | . . . . . . . . . . . 1 . 1 Feedback Events 1 | . . . . . . . . . . . . . 1 Corruption 1 | . . . . . . . . . . . . . 1 Feedback Blocked . | . . . . . . . . . . . . . . Robot Schematics Acquired . | . . . . . . . . . . . . . . Robots Built . | . . . . . . . . . . . . . . Authchips . | . . . . . . . . . . . . . . Time . | . . . . . . . . . . . . . . Total Robot Build Rating . | . . . . . . . . . . . . . . Part Schematics Acquired 1 | . . . . . . . 1 . . . . . . Parts Built 1 | . . . . . . . . . . . 1 . . Authchips 1 | . . . . . . . . . . . 1 . . Time 50 | . . . . . . . . . . . 50 . . Total Part Build Rating 5 | . . . . . . . . . . . 5 . . Part Studies Acquired 7 | . . . . . . . 1 6 . . . . . Parts Repaired 1 | . . . . . . . . . . . 1 . . Time 19 | . . . . . . . . . . . 19 . . Parts Recycled . | . . . . . . . . . . . . . . Recycled Matter . | . . . . . . . . . . . . . . Retrieved Matter . | . . . . . . . . . . . . . . Retrieved Components . | . . . . . . . . . . . . . . Parts Scanalyzed 1 | . . . . . . . 1 . . . . . . Part Schematics Acquired 1 | . . . . . . . 1 . . . . . . Parts Damaged . | . . . . . . . . . . . . . . Bothacking | -11 -10 -10 -10 -9 -8 -7 -6 -5 -4 -4 -3 -2 -1 ------------ Run | Yrd Mat Min Exi Min Mat Fac Fac Fac Fac DSF Res Res Acc Used RIF Installer . | . . . . . . . . . . . . . . Robots Hacked . | . . . . . . . . . . . . . . Non-combat . | . . . . . . . . . . . . . . Combat . | . . . . . . . . . . . . . . Robot Hacks Applied . | . . . . . . . . . . . . . . Relay Couplers Released . | . . . . . . . . . . . . . . Fabnet Peak Effective % . | . . . . . . . . . . . . . . Robots Rewired . | . . . . . . . . . . . . . . Allies Hacked . | . . . . . . . . . . . . . . Hacks Repelled . | . . . . . . . . . . . . . . Allies | -11 -10 -10 -10 -9 -8 -7 -6 -5 -4 -4 -3 -2 -1 -------- Run | Yrd Mat Min Exi Min Mat Fac Fac Fac Fac DSF Res Res Acc Total Allies 3 | . . 3 . . . . . . . . . . . Largest Group 3 | . . 3 . . . . . . . . . . . Highest-Rated Group 40 | . . 40 . . . . . . . . . . . Highest-Rated Ally 16 | . . 16 . . . . . . . . . . . Total Orders . | . . . . . . . . . . . . . . Ally Attacks 6 | . . 6 . . . . . . . . . . . Total Damage 67 | . . 67 . . . . . . . . . . . Kills . | . . . . . . . . . . . . . . Allies Corrupted . | . . . . . . . . . . . . . . Allies Melted . | . . . . . . . . . . . . . . Intel | -11 -10 -10 -10 -9 -8 -7 -6 -5 -4 -4 -3 -2 -1 ------- Run | Yrd Mat Min Exi Min Mat Fac Fac Fac Fac DSF Res Res Acc Active Infowar (turns) 2151 | 30 34 202 109 210 116 343 93 221 4 19 396 206 168 Optics 1309 | . . . . . . 268 35 221 4 19 396 206 160 Structural 928 | . . . . . . . . 135 4 19 396 206 168 Traps 70 | . . . . . . . 15 55 . . . . . Seismic 1107 | 30 34 202 109 210 116 338 68 . . . . . . Robot Analysis Total . | . . . . . . . . . . . . . . Derelict Logs Recovered 2 | . . . . 2 . . . . . . . . . Drone Launches . | . . . . . . . . . . . . . . Drone Recoveries . | . . . . . . . . . . . . . . Exploration | -11 -10 -10 -10 -9 -8 -7 -6 -5 -4 -4 -3 -2 -1 ------------- Run | Yrd Mat Min Exi Min Mat Fac Fac Fac Fac DSF Res Res Acc Turns Passed 2280 | 126 34 202 109 210 116 343 126 221 4 19 396 206 168 Spaces Moved 4510 | 85 67 229 215 414 239 700 398 469 16 32 874 405 367 Core 1092 | 85 67 225 215 414 86 . . . . . . . . Treads 4 | . . 4 . . . . . . . . . . . Legs . | . . . . . . . . . . . . . . Wheels . | . . . . . . . . . . . . . . Hover 13 | . . . . . . . . . . . . 13 . Flight 3401 | . . . . . 153 700 398 469 16 32 874 392 367 Fastest Speed 15 | 50 50 50 50 50 26 26 24 17 24 24 18 15 15 Average Speed 31 | 53 50 52 50 50 37 26 24 23 24 57 23 29 21 Slowest Speed 260 | 100 50 160 50 50 112 29 24 104 24 107 107 260 22 Overloaded Moves 17 | . . . . . . . . 4 . . . 9 4 Propulsion Burnouts . | . . . . . . . . . . . . . . Robots Hopped 16 | . . . . . 13 . . . . . 2 1 . Potential Cave-ins . | . . . . . . . . . . . . . . Cave-ins Triggered . | . . . . . . . . . . . . . . Exploration Rate (%) 30 | 4 24 47 61 88 38 22 12 19 1 46 30 16 18 Regions Visited 13 Branch Regions 3 Pre-discovered Areas 3 | . . . 1 2 . . . . . . . . . Known Exits Taken 5 | . . . . . . 1 1 . 1 . 1 1 . Unknown Exits Taken 7 | 1 1 1 1 1 1 . . 1 . . . . . Scrap Searched 2 | . . 1 . 1 . . . . . . . . . Spaces Dug 56 | . . . . . 1 4 2 11 . . 15 10 13 Terrain Destroyed 71 | . . . . . 12 4 2 11 . . 16 11 15 Melee 53 | . . . . . 1 4 2 11 . . 12 10 13 Projectile 7 | . . . . . . . . . . . 4 1 2 AOE 11 | . . . . . 11 . . . . . . . . Terrain Rammed . | . . . . . . . . . . . . . . Walls Destroyed . | . . . . . . . . . . . . . . Machines Disabled . | . . . . . . . . . . . . . . Actions | -11 -10 -10 -10 -9 -8 -7 -6 -5 -4 -4 -3 -2 -1 --------- Run | Yrd Mat Min Exi Min Mat Fac Fac Fac Fac DSF Res Res Acc Total 5030 | 120 66 277 216 417 250 812 416 543 15 31 998 456 413 Wait 167 | . . 18 . . . 54 . 10 . . 52 29 4 Move 4471 | 84 66 228 214 413 219 699 397 468 15 31 869 402 366 Hop 9 | . . . . . 6 . . . . . 2 1 . Pick Up 46 | 5 . 2 1 2 6 6 4 8 . . 7 1 4 Fast Attach 43 | 5 . 1 . . 3 13 3 2 . . 9 3 4 Attach 30 | . . 3 . . 7 . 1 3 . . 8 2 6 Detach 25 | 1 . 3 . . 3 3 2 2 . . 6 1 4 Swap 8 | . . . . . . 2 3 1 . . 2 . . Drop 41 | 1 . 2 1 2 4 12 1 6 . . 8 1 3 Fire 55 | 24 . 20 . . 1 . . . . . 7 1 2 Melee 112 | . . . . . 1 23 5 20 . . 28 15 20 Ram . | . . . . . . . . . . . . . . Kick . | . . . . . . . . . . . . . . Crush . | . . . . . . . . . . . . . . Escape Stasis 23 | . . . . . . . . 23 . . . . . Rewire . | . . . . . . . . . . . . . . Trap . | . . . . . . . . . . . . . . Miscellaneous . | . . . . . . . . . . . . . . Route ------- -11/Scrapyard -10/Materials -10/Mines (discovered 2 exits: [*Mat] / *Exi) -10/Exiles -9/Mines -8/Materials -7/Factory -6/Factory (discovered 8 exits: *Fac x4 / *Low x2 / Ext x2) -5/Factory (discovered 3 exits: *Fac / Upp x2) -4/Factory -4/DSF -3/Research (discovered 3 exits: *Res x3) -2/Research (discovered 3 exits: *Acc x3) -1/Access To Epsilon Eridani History --------- Turn | Location | Event 4 | -11/Scrapyard | Discovered new exit (range 15) 127 | -11/Scrapyard | Entered Materials 154 | -10/Materials | Discovered new exit (range 15) 161 | -10/Materials | Entered Mines 286 | -10/Mines | Assisted by bots powering up and referring to "LRC-V3" 288 | -10/Mines | Discovered new exit (range 7) 315 | -10/Mines | Build established: Mutant 320 | -10/Mines | Assembled infested the area 361 | -10/Mines | Deemed a non-threat by the Exiles lab entrance 361 | -10/Mines | Discovered new exit (range 5) 363 | -10/Mines | Entered Exiles 371 | -10/Exiles | Lost 3 allies 376 | -10/Exiles | Met 8R-AWN 384 | -10/Exiles | Met EX-HEX 399 | -10/Exiles | Met EX-BIN 409 | -10/Exiles | Aligned with FarCom system 410 | -10/Exiles | Given EX-Vault access code 421 | -10/Exiles | Opened EX-Vault 425 | -10/Exiles | Found Superbattery 436 | -10/Exiles | Warned to stay clear of 0b10 Research branches 449 | -10/Exiles | Met EX-DEC 452 | -10/Exiles | Learned location of Zion (-6) 467 | -10/Exiles | Discovered new exit (range 12) 472 | -10/Exiles | Left Exiles lab with Superbattery 472 | -10/Exiles | Entered Mines 475 | -9/Mines | Learned location of Storage (-8) 479 | -9/Mines | Received a Rocket Launcher from a helpful Derelict 479 | -9/Mines | A weapon hastily lodged in a ceiling crevice suddenly fell to the ground 535 | -9/Mines | Met a Derelict bent on vengeance 676 | -9/Mines | Discovered new exit (range 14) 682 | -9/Mines | Entered Materials 682 | -8/Materials | Evolved 4 slots: Propulsion x2, Utility x2 779 | -8/Materials | Discovered new exit (range 16) 798 | -8/Materials | Entered Factory 798 | -7/Factory | Evolved 2 slots: Utility x2 809 | -7/Factory | Lost 4 parts (3n1u) 850 | -7/Factory | Garrison activated, responded to threat 1125 | -7/Factory | Discovered new exit (range 6) 1128 | -7/Factory | Identified exit to Factory 1141 | -7/Factory | Entered another Factory area 1141 | -6/Factory | Evolved 2 slots: Power x1, Propulsion x1 1195 | -6/Factory | Central database locked down 1199 | -6/Factory | Discovered new exit (range 10) 1210 | -6/Factory | Identified exit to Lower Caves 1210 | -6/Factory | Identified exit to Extension 1230 | -6/Factory | Build established: Sprinter 1253 | -6/Factory | Identified exit to Factory 1267 | -6/Factory | Entered another Factory area 1267 | -5/Factory | Evolved 2 slots: Propulsion x1, Utility x1 1397 | -5/Factory | Identified exit to Upper Caves 1441 | -5/Factory | Discovered new exit (range 20) 1460 | -5/Factory | Garrison activated, responded to threat 1488 | -5/Factory | Entered another Factory area 1488 | -4/Factory | Evolved 2 slots: Utility x2 1492 | -4/Factory | Identified exit to DSF 1492 | -4/Factory | Entered DSF 1503 | -4/DSF | Discovered new exit (range 20) 1511 | -4/DSF | Entered Research 1511 | -3/Research | Evolved 2 slots: Propulsion x1, Utility x1 1591 | -3/Research | Repaired Cesium-ion Thruster+ 1633 | -3/Research | Identified exit to Research 1754 | -3/Research | Garrison activated, responded to threat 1862 | -3/Research | Fabricated Cld. Cesium-ion Thruster? 1901 | -3/Research | Build established: Hacker-Scout 1907 | -3/Research | Entered another Research area 1907 | -2/Research | Evolved 2 slots: Propulsion x1, Utility x1 1912 | -2/Research | Identified exit to Access 1990 | -2/Research | Spotted B-90 Cyclops 2113 | -2/Research | Entered Access 2113 | -1/Access | Evolved 2 slots: Utility x2 2139 | -1/Access | Spotted B-99 Colossus 2180 | -1/Access | Found Prototype Processor 2180 | -1/Access | Identified Exp. Signal Interpreter 2220 | -1/Access | Identified exit to Surface 2281 | *** | Escaped! Last Messages --------------- 02273_ Greatsword+ temporarily disabled. 02273_ Hacking Suite destroyed. 02274_ Acquired Hacking Suite. 02276_ Mni. Fusion Reactor destroyed. 02277_ C-30 ARC bursts open, deploying its payload. 02277_ H-88 Terminator unfolds itself. 02277_ Slug penetrates H-88 Terminator. 02277_ Slug penetrates Wall. 02277_ Penetrated by Slug. 02277_ Greatsword+ destroyed. 02277_ Acquired 35 matter. 02277_ Slug penetrates Wall. 02278_ ALERT: Suspicious intruders detected, dispatching Specialist reinforcements to area. 02278_ Connecting with Terminal... >>Open(Door) Sealed Barrier opened. 02280_ The Access Shell folds into the floor. 02280_ Penetrated by Slug. Map ----- +----------------------------------------------------+ | ????????????## # ##???????????? | | ???????????? + !! # ##???????????? | | ????????????## " ! # ##???????????? | | ????????????## """ ! # ##???????????? | | ????????????## """ # ##???????????? | | ????????????## " # ##???????????? | | ????????????## " ##???????????? | | ????????????## # ##???????????? | | ????????????## # ##???????????? | | ????????????##################"####### # ???????? | | ????????????##################"####### # ???????? | | ????????????? # ???????? | | ????????????? hh hh" ##???????? | | ????????????????##### ""###########???????? | | ????????????????##### ""###########???????? | | ???????????????????## ""##????????????????? | | ???????????????????## T##????????????????? | | ???????????????????## ""##????????????????? | | ??????????????????### ""###???????????????? | | ??????????????????### ""###???????????????? | | ??????????????????## ##???????????????? | | ??????????????????### ###???????????????? | | ??????????????????### ###???????????????? | | ???????????????????## ##????????????????? | | ???????????????????## ##????????????????? | | ???????????????????## @" ##????????????????? | | ???????????????????## "" ##????????????????? | | ???????????????????## ##????????????????? | | ???????????????????## ##????????????????? | | ???????????????????## ##????????????????? | | ???????????????????##""""""""""##????????????????? | | ???????????????????##"????????"##????????????????? | | ?????????????????????????????????????????????????? | | ?????????????????????????????????????????????????? | | ?????????????????????????????????????????????????? | | ??????????????????????BB????BB???????????????????? | | ??????????????????????BB????BB???????????????????? | | ?????????????????????????????????????????????????? | | ?????????????????????????????????????????????????? | | ?????????????????????????????????????????????????? | | ?????????????????????????????????????????????????? | | ?????????????????????????????????????????????????? | | ?????????????????????????????????????????????????? | | ?????????????????????????????????????????????????? | | ?????????????????????????????????????????????????? | | ?????????????????????????????????????????????????? | | ?????????????????????????????????????????????????? | | ?????????????????????????????????????????????????? | | ?????????????????????????????????????????????????? | | ?????????????????????????????????????????????????? | +----------------------------------------------------+ Best States ------------- Heat Dissipation 52 Energy Generation 32 Energy Capacity 1650 Matter Stores 300 Matter Capacity 300 Sight Range 22 Terrain Scan Density 210 Armor Coverage 375 Utility Shielding 66 Evasion (%) 76 Launcher Accuracy 20 Recoil Reduction 2 Offensive Hacking 52 Defensive Hacking 10 Authchip Count 1 Item Schematics ----------------- Cld. Cesium-ion Thruster | -6/Factory | Scanalyzed Robot Schematics ------------------ None Fabricated ------------ Cld. Cesium-ion Thruster | x1 | -3/Research | Authchip Repaired ---------- Cesium-ion Thruster | 72% | -3/Research Studied --------- Cesium-ion Thruster | -6/Factory | Hacked Xenon Bombardment Thruster | -5/Factory | Hacked Mic. Fission Core | -5/Factory | Hacked Lgt. Nuclear Core | -5/Factory | Hacked Greatsword | -5/Factory | Hacked Chainsword | -5/Factory | Hacked Katana | -5/Factory | Hacked Alien Tech Used ----------------- None Achievements -------------- None Challenges ------------ None Game ------ Seed SpectralTractorStabilizer Manual? 0 Play Time 00:36:43 Cumulative 411.6 hours Start 2026.09.16 @ 14:40:56 End 2026.09.16 @ 15:16:09 Sessions 1 Manual Loads 0 Difficulty Rogue Special Mode None Game No. 248 Rogue 244 Adventurer 4 Explorer 0 Win Type 0 Total 127 Types 93/0/18/4/2/1/3/0/0/6 Lore% 93 Gallery% 76 Achievement% 74 Wizard Run 0 Options --------- Layout 2 ASCII 0 Keyboard 1 Movement Vi Keybinds 1 Fullscreen 2 Font 24/Smallcaps Map View 50x44 Zoom Use 0% Tactical HUD 1 Map Filters NONE Filters NONE Steam 1 RUN: 7f45cbe4-279c-4db0-a178-3ee39530e85f